[Event "Germany Countries-chT Youth 2022"]
[Site "Wiesbaden"]
[Date "2022.10.01"]
[Round "1"]
[White "Schmider, Niklas"]
[Black "Färber, David"]
[Result "0-1"]
[ECO "A07"]
[WhiteElo "2407"]
[BlackElo "2354"]
[Annotator "TA"]
[PlyCount "84"]
[EventDate "2022.09.28"]
[EventType "team-tourn"]
[EventRounds "7"]
[EventCountry "GER"]
[SourceTitle "playchess.com"]
[Source "ChessBase"]
[SourceQuality "1"]
[TimeControl "40/5400+30:1800+30"]

{[%evp 9,83,0,10,0,4,0,0,0,0,0,0,0,0,0,20,1,22,-7,7,0,2,0,21,16,8,22,14,1,0,0,25,0,20,0,0,0,0,0,20,0,4,8,18,0,0,-48,-17,-29,-29,-29,-26,-66,0,0,8,18,7,5,8,-126,-142,-132,-143,-170,-169,-173,-162,-3503,-3492,-2921,-2890,-29984,-29985,-29998,-29999,-29999]} 1. Nf3 {[%emt 0:00:34]} Nf6 {[%emt 0:00:47]} 2. g3 {[%emt 0:00:30]} d5 {[%emt 0:00:41]} 3. Bg2 {[%emt 0:00:30]} Bg4 {[%emt 0:01:55]} 4. h3 {[%emt 0:00:28]} Bxf3 {[%emt 0:04:30]} 5. Bxf3 {[%emt 0:00:38]} e5 {[%emt 0:00:40]} 6. d3 {[%emt 0:01:24] A07: Réti Opening: New York and Capablanca Systems.} c6 {[%emt 0:04:19]} 7. O-O {[%emt 0:00:22]} Bc5 {[%emt 0:01:54] is cutting edge theory.} 8. e4 {[%emt 0:02:56] The position is equal.} O-O {[%emt 0:01:52]} 9. exd5 {[%emt 0:05:16]} Nxd5 {[%emt 0:06:05]} 10. Nc3 {[%emt 0:03:19]} Nxc3 {[%emt 0:14:15]} 11. bxc3 {[%emt 0:00:12] [#]} Qd6 $146 {[%emt 0:04:28]} ({Predecessor:} 11... Nd7 12. Rb1 Qc7 13. Re1 f5 14. d4 Bd6 15. Qe2 Rae8 16. Qc4+ Kh8 17. Qb3 e4 {0-1 (23) Petruzzelli,R (2018)-Tanti,J (2236) ICCF email 2019}) 12. Rb1 {[%emt 0:03:00]} Bb6 {[%emt 0:02:56]} 13. Bd2 {[%emt 0:22:54]} Nd7 {[%emt 0:06:27]} 14. Bg2 {[%emt 0:07:17]} Rab8 {[%emt 0:02:35]} 15. Qe2 {[%emt 0:07:33]} Rfd8 {[%emt 0:08:13]} 16. Rfe1 {[%emt 0:08:47]} Qa3 {[%emt 0:01:33]} 17. c4 {[%emt 0:05:38]} Ba5 {[%emt 0:06:34] Prevents Bb4.} 18. Bxa5 {[%emt 0:01:47]} Qxa5 {[%emt 0:00:10]} 19. Rb2 {[%emt 0:01:14]} Qc7 {[%emt 0:06:41]} 20. Qe3 {[%emt 0:02:50]} b6 {[%emt 0:01:24]} 21. Qf3 {[%emt 0:06:59]} Rbc8 {[%emt 0:01:33]} 22. Rbb1 {[%emt 0:01:17]} Qd6 {[%emt 0:00:30]} 23. h4 {[%emt 0:02:45][%cal Bh3h4,Bh4h5][%mdl 32]} Rc7 {[%emt 0:03:54]} 24. Bh3 {[%emt 0:00:57]} f6 {[%emt 0:02:00]} 25. h5 {[%emt 0:01:56]} Nc5 {[%emt 0:00:46]} 26. h6 {[%emt 0:03:49]} g6 {[%emt 0:00:53]} 27. Re3 {[%emt 0:01:41]} (27. Rbd1 $11 {deserves consideration.}) 27... Qf8 {[%emt 0:06:41]} 28. Rbe1 {[%emt 0:02:47]} Rd6 {[%emt 0:01:49]} 29. c3 {[%emt 0:04:01][%cal Od3d4]} Qxh6 {[%emt 0:00:47]} 30. Bf1 {[%emt 0:00:23][%cal Od3d4]} Rf7 {[%emt 0:03:14] Black is more active.} ({Black should try} 30... Qh5 $15 31. Qxh5 gxh5) 31. d4 $1 $11 {[%emt 0:00:55]} Ne6 $36 {[%emt 0:03:20][%cal Bc5e6,Be6g5,Bg5f3][%mdl 2080] Black is pushing.} 32. c5 {[%emt 0:01:10]} bxc5 {[%emt 0:00:21]} 33. dxe5 {[%emt 0:00:35]} fxe5 {[%emt 0:00:13]} 34. Qe2 {[%emt 0:00:11] [#]} (34. Qg4 $11 Nc7 35. Qc4) 34... Ng5 $1 $17 {[%emt 0:00:32][%cal Od6d2] Threatens to win with ...Rd2!} 35. Bg2 {[%emt 0:00:44]} e4 {[%emt 0:00:32]} 36. Rf1 {[%emt 0:00:34] [#]} Rdf6 $1 {[%emt 0:01:24][%cal Bd6f6,Bf6f5,Bf5h5,Bh5h1][%mdl 32] White must now prevent ...Nf3+.} 37. Qg4 {[%emt 0:00:24]} Rf5 {[%emt 0:00:48] Strongly threatening ...Nf3+.} 38. Re2 $2 {[%emt 0:00:28]} (38. Qh4 Nf3+ 39. Bxf3 Qxh4 40. gxh4 Rxf3 41. Rxe4) 38... Nf3+ $19 {[%emt 0:00:36]} 39. Bxf3 {[%emt 0:00:06]} exf3 {[%emt 0:00:12]} 40. Re3 {[%emt 0:01:03]} Rh5 {[%emt 0:00:28][%csl Gh6][%cal Rh5h1] Black mates.} 41. Rxf3 {[%emt 0:30:05]} Rh1+ {[%emt 0:30:07]} 42. Kg2 {[%emt 0:00:02]} Qh2# {[%emt 0:00:06] Weighted Error Value: White=0.45/Black=0.07 (flawless)} 0-1

[Event "Germany Countries-chT Youth 2022"]
[Site "Wiesbaden"]
[Date "2022.10.01"]
[Round "1"]
[White "Weishaeutel, Moritz"]
[Black "Stelmaszyk, Nico"]
[Result "1/2-1/2"]
[ECO "D31"]
[WhiteElo "2401"]
[BlackElo "2355"]
[Annotator "TA"]
[PlyCount "87"]
[EventDate "2022.09.28"]
[EventType "team-tourn"]
[EventRounds "7"]
[EventCountry "GER"]
[SourceTitle "playchess.com"]
[Source "ChessBase"]
[SourceQuality "1"]
[TimeControl "40/5400+30:1800+30"]

{[%evp 9,87,18,21,18,21,14,22,10,44,20,31,12,10,-24,-22,-50,-40,-20,-27,-52,-45,-97,-100,-141,-140,-139,-146,-128,-162,-138,-128,-206,-223,-280,-259,-227,-175,-176,-167,-164,-159,-164,-114,-197,-120,-113,-67,-95,0,-1,-2,-4,0,-2,0,-31,0,0,0,0,0,0,0,0,0,0,0,0,0,0,0,0,0,0,0,0,0,0,0,0]} 1. d4 {[%emt 0:00:03]} d5 {[%emt 0:00:06]} 2. c4 {[%emt 0:00:06]} e6 {[%emt 0:00:04]} 3. Nc3 {[%emt 0:00:05]} a6 {[%emt 0:00:07]} 4. cxd5 {[%emt 0:00:27]} exd5 {[%emt 0:00:05]} 5. Bf4 {[%emt 0:00:06]} Nf6 {[%emt 0:01:03]} 6. e3 {[%emt 0:00:11] D31: Queen's Gambit Declined: Semi-Slav without ...Nf6 (+ Marshall Gambit and Noteboom) and Exchange Variation lines without ...Nf6.} Bd6 {[%emt 0:00:28]} 7. Bg5 {[%emt 0:00:23]} c6 {[%emt 0:04:13]} 8. Bd3 {[%emt 0:00:11]} Be6 {[%emt 0:03:56]} 9. Nge2 {[%emt 0:05:52]} Nbd7 {[%emt 0:02:25]} 10. Nf4 {[%emt 0:03:46]} Qc7 {[%emt 0:06:50] [#]} 11. Nxe6 $146 {[%emt 0:05:20]} ({Predecessor:} 11. Qc2 O-O-O 12. O-O-O h6 13. Nxe6 fxe6 14. Bh4 g5 15. Bg3 e5 16. Kb1 e4 17. Be2 {½-½ (42) Grandelius,N (2651)-Tristan,L (2535) Chess.com INT 2020}) 11... fxe6 {[%emt 0:00:12][%cal Bf7e6,Be6e5][%mdl 32]} 12. Qf3 {[%emt 0:00:30]} O-O-O {[%emt 0:03:37]} 13. Qh3 {[%emt 0:03:27]} e5 {[%emt 0:07:47]} 14. O-O {[%emt 0:03:46] And now Bxf6 would win.} Kb8 {[%emt 0:03:14]} 15. Bf5 {[%emt 0:08:09]} (15. Na4 $15) 15... h6 $17 {[%emt 0:06:51][%cal Bh7h6,Bh6h5,Bh5h4][%mdl 32]} 16. Bh4 {[%emt 0:03:02] [#]} g5 $1 {[%emt 0:04:07]} 17. Bg3 {[%emt 0:00:09] [#]} h5 $1 {[%emt 0:03:02]} 18. dxe5 {[%emt 0:07:11]} Nxe5 {[%emt 0:02:26]} 19. f4 {[%emt 0:18:40]} Nf7 {[%emt 0:05:25] Threatens to win with ...h4. Pair of Knights!} 20. Be6 {[%emt 0:04:03]} (20. fxg5 $17 Nxg5 21. Qh4 Bxg3 22. hxg3) 20... h4 $19 {[%emt 0:14:16]} 21. Be1 {[%emt 0:01:06]} Qe7 {[%emt 0:03:16]} 22. e4 {[%emt 0:03:42]} (22. Bxf7 $2 g4 23. Qxh4 (23. Nxd5 $2 cxd5 24. Qxh4 Rxh4 $19) 23... Rxh4 24. Bxh4 Qxf7 $19) 22... Bxf4 {[%emt 0:03:36]} 23. exd5 {[%emt 0:00:46]} cxd5 {[%emt 0:00:52] ...d4 is the strong threat.} 24. Bxf7 {[%emt 0:02:11]} Qxf7 {[%emt 0:00:07]} 25. Ne2 {[%emt 0:00:37]} Ne4 {[%emt 0:05:05]} (25... Be5 $19 {Hoping for ...d4.} 26. Bf2 d4) 26. Qf3 {[%emt 0:01:51]} (26. Bc3 $17 {was worth a try.}) 26... Rdf8 {[%emt 0:03:07]} ({Black should play} 26... Ka8 $19 27. Rd1 (27. Nxf4 gxf4 28. Qxf4 Qg7 $17) 27... Qg6) 27. Nxf4 $17 {[%emt 0:09:02]} Qxf4 {[%emt 0:00:08]} ({Better is} 27... gxf4 $17 28. Bb4 Qe6 29. Bxf8 Qb6+ 30. Rf2 (30. Bc5 Qxc5+ 31. Rf2 Qxf2+ 32. Qxf2 Nxf2 $17) 30... Rxf8) 28. Qxf4+ {[%emt 0:00:03]} Rxf4 {[%emt 0:03:26]} (28... gxf4 $17 29. Rd1 Rhg8) 29. Rxf4 $11 {[%emt 0:00:06]} gxf4 $17 {[%emt 0:00:02][%mdl 4096] Endgame KRB-KRN} 30. Rd1 {[%emt 0:00:07]} Rh5 {[%emt 0:00:58]} 31. Rd3 {[%emt 0:02:10]} h3 {[%emt 0:08:19]} 32. Rf3 {[%emt 0:02:32]} hxg2 {[%emt 0:04:18]} 33. Rxf4 {[%emt 0:00:03] The position is equal.} Rh3 {[%emt 0:01:55]} 34. Bg3 {[%emt 0:02:11][%mdl 64] Decoy} Nxg3 {[%emt 0:01:25]} (34... Kc8 {feels hotter.} 35. Rh4 Rxh4 36. Bxh4 Kd7) 35. Kxg2 {[%emt 0:00:06]} Rh7 {[%emt 0:00:29]} 36. Kxg3 $11 {[%emt 0:00:11] KR-KR} Kc7 {[%emt 0:00:11]} 37. Rf2 {[%emt 0:08:52]} Rg7+ {[%emt 0:00:27]} 38. Kf4 {[%emt 0:00:28]} Rf7+ {[%emt 0:00:18]} 39. Ke3 {[%emt 0:00:29]} d4+ {[%emt 0:00:48]} 40. Ke2 {[%emt 0:00:04]} Rh7 {[%emt 0:00:06]} ({Don't do} 40... d3+ 41. Ke3 Rh7 42. Kxd3 $14) 41. Kd3 {[%emt 0:30:58]} Rh4 {[%emt 0:30:07]} 42. Kc4 {[%emt 0:02:50]} Kc6 {[%emt 0:00:34]} 43. Rf6+ {[%emt 0:03:48]} Kc7 {[%emt 0:00:08]} 44. Rf2 {[%emt 0:00:08] White happily takes the draw.  Weighted Error Value: White=0.15 (very precise) /Black=0.15 (very precise)} 1/2-1/2

[Event "Germany Countries-chT Youth 2022"]
[Site "Wiesbaden"]
[Date "2022.10.01"]
[Round "1"]
[White "Kolb, Tobias"]
[Black "Hassemeier, Mika"]
[Result "1-0"]
[ECO "E46"]
[WhiteElo "2357"]
[BlackElo "2095"]
[Annotator "TA"]
[PlyCount "109"]
[EventDate "2022.09.28"]
[EventType "team-tourn"]
[EventRounds "7"]
[EventCountry "GER"]
[SourceTitle "playchess.com"]
[Source "ChessBase"]
[SourceQuality "1"]
[TimeControl "40/5400+30:1800+30"]

{[%evp 9,109,0,-4,0,0,-7,15,-13,-10,-8,-8,-31,-20,-48,-9,-41,18,21,8,0,-8,-2,0,-27,-24,-25,13,13,70,77,90,91,89,94,84,78,83,52,56,54,75,66,227,169,157,131,201,93,361,93,93,93,93,93,92,91,91,91,98,91,99,-40,128,128,128,128,128,128,128,128,128,128,310,299,313,128,128,128,128,128,128,128,128,128,128,-116,128,128,128,128,128,128,128,0,29984,29985,29984,29985,29983,29983,2398,1953]} 1. d4 Nf6 2. c4 e6 3. Nc3 Bb4 4. e3 {[%cal Be2e3,Be3e4,Be4e5][%mdl 32]} O-O 5. Nge2 c6 6. a3 {E46: Nimzo-Indian: Rubinstein: 4 e3 0-0 5 Ne2 without early Bd3.} Ba5 7. b4 Bc7 8. e4 {The position is equal.} d5 9. e5 Ne8 10. Ng3 f6 11. f4 a5 {[#]} (11... c5 $5 12. bxc5 Ba5 $15) 12. b5 $146 ({Predecessor:} 12. Rb1 axb4 13. axb4 g5 14. Bd3 gxf4 15. Bxf4 fxe5 16. Bxh7+ Kxh7 17. Qh5+ Kg8 18. Qg6+ Ng7 19. Nh5 Qh4+ {0-1 (19) Mohammed,Z (2261)-Maghsoodloo,P (2636) Hamedan 2018}) 12... Nd7 (12... a4 $15) 13. cxd5 $1 $11 cxd5 {[%cal Rf6e5]} 14. Be3 fxe5 15. fxe5 Qh4 {[%cal Od7e5] aiming for ...Nxe5!} 16. Qh5 Qxh5 17. Nxh5 g6 (17... a4 $5 {[%cal Rc7a5]}) 18. Ng3 Bb6 (18... Nb6 $11) 19. Na4 $14 Ba7 20. Kd2 Ng7 21. Bd3 (21. Rc1 {looks sharper.} Nb6 22. Nb2 Bd7 23. Rc7) 21... Nb6 22. Nxb6 {White has more active pieces.} Bxb6 23. h4 Nf5 24. Nxf5 gxf5 25. g4 fxg4 $2 (25... f4 $14 26. Bf2 a4) 26. Rhg1 h5 27. Bg6 Rf5 {[#]} (27... a4 $16) 28. a4 ({Less strong is} 28. Bxf5 exf5 29. Kd3 a4 $14) (28. Bxh5 $1 $18 {[%mdl 512]} Rxh5 29. Rxg4+ Kf7 30. Rag1) 28... Kg7 $2 {[%mdl 8192] [#]} (28... Bd7 $16) 29. Bxf5 $2 (29. Bxh5 $1 $18 {[%mdl 512] is the precise move to win.} Rxh5 30. Rxg4+ Kh8 31. Bg5) 29... exf5 $16 30. Kd3 Be6 31. Rac1 Kf7 32. Rc3 Ke7 33. Bc1 Kd7 34. Rf1 Rf8 35. Ba3 ({White should try} 35. Bf4 $16) 35... Rc8 $2 (35... Rg8 $15 {stays ahead.} 36. Bc5 Bd8) 36. Rxc8 Kxc8 {[%mdl 4096] Endgame KRB-KB} 37. Ke3 Kd7 38. Bc5 Bd8 39. Rh1 Bf7 40. Kf4 Ke6 (40... Be6 $16 41. Ba3 Ke8) 41. Bd6 $18 Be8 {[#]} 42. Kg3 (42. Rc1 $1 $18 {[%cal Rc1c8] Threatens to win with Rc8.} Kd7 43. Kxf5) 42... Bd7 43. Rc1 Bb6 44. Bc5 Bd8 45. Ba7 Ke7 46. Rc3 Be6 47. Kf4 $2 (47. Rc2 $16 {and life is bright.}) 47... Kd7 $2 (47... Kf7 $17 {keeps the pressure on.} 48. Kg3 f4+ 49. Kxf4 Bxh4) 48. Rc1 $16 Ke7 49. Bb8 {Black must now prevent Bc7.} Kd7 {Prevents Bc7.} 50. Bd6 Bb6 51. Kg5 (51. Bc5 $16 Bd8 52. Rh1) 51... Bxd4 {[%mdl 8192]} (51... Bd8+ $11 52. Kf4 (52. Kxh5 $2 g3 $19) 52... Bb6) 52. Rc7+ Kd8 53. Kf6 Bd7 54. Rxb7 f4 55. b6 {Weighted Error Value: White=0.29 (precise) /Black=0.46} 1-0

[Event "Germany Countries-chT Youth 2022"]
[Site "Wiesbaden"]
[Date "2022.10.01"]
[Round "1"]
[White "Campora, Daniel H."]
[Black "Mader, Fabian"]
[Result "1/2-1/2"]
[ECO "D00"]
[WhiteElo "2344"]
[BlackElo "1735"]
[Annotator "TA"]
[PlyCount "87"]
[EventDate "2022.09.28"]
[EventType "team-tourn"]
[EventRounds "7"]
[EventCountry "GER"]
[SourceTitle "playchess.com"]
[Source "ChessBase"]
[SourceQuality "1"]
[TimeControl "40/5400+30:1800+30"]

{[%evp 15,87,58,66,54,47,47,41,52,68,66,116,36,184,88,111,0,-14,-10,0,0,0,-62,-39,-62,-71,-25,0,0,48,42,160,157,155,164,162,162,162,56,80,10,64,0,0,-31,-31,-40,-31,-16,-20,-41,-27,-28,-14,-26,-16,-23,-23,-23,-24,-24,-3,-4,-2,-4,-3,-2,-2,-4,0,-10,-10,-14,-10,-16]} 1. d4 {[%emt 0:00:02]} Nf6 {[%emt 0:00:08]} 2. Nf3 {[%emt 0:00:04]} g6 {[%emt 0:00:09]} 3. Nc3 {[%emt 0:00:06]} d5 {[%emt 0:00:08]} 4. Bf4 {[%emt 0:00:04]} Bg7 {[%emt 0:00:10]} 5. e3 {[%emt 0:00:06]} O-O {[%emt 0:00:18]} 6. Be2 {[%emt 0:00:05]} b6 {[%emt 0:03:29]} 7. Ne5 {[%emt 0:03:00]} Bb7 {[%emt 0:03:02]} 8. h4 {[%emt 0:08:11]} Nbd7 {[%emt 0:06:20]} 9. h5 {[%emt 0:09:25] D00: 1 d4 d5: Unusual lines.} c5 {[%emt 0:12:14]} 10. hxg6 {[%emt 0:04:28]} fxg6 {[%emt 0:04:23]} 11. Qd2 {[%emt 0:02:17] White is slightly better.} e6 {[%emt 0:25:04]} 12. O-O-O {[%emt 0:02:56] [#]} c4 $146 {[%emt 0:06:41]} ({Black should try} 12... a6 $14) ({Predecessor:} 12... a6 13. Rh3 Re8 14. Rdh1 Nf8 15. Bg5 Qc7 16. Bf4 Qd8 17. Bh6 Bxh6 18. Rxh6 Re7 {1-0 (49) Callens,P (2279)-Sande,O (2522) ICCF email 1999}) 13. e4 {[%emt 0:08:06] White has more active pieces.} (13. Bg5 $16) 13... a6 {[%emt 0:04:56]} (13... Nxe5 $14 14. Bxe5 b5) 14. Nf3 {[%emt 0:17:59]} (14. Qe3 $1 $18 {has better winning chances.}) 14... b5 {[%emt 0:06:50][%cal Bb6b5,Bb5b4][%mdl 32]} 15. Ng5 {[%emt 0:20:38]} (15. e5 $1 $16 {[%cal Re5f6]}) 15... b4 $11 {[%emt 0:06:04]} 16. Nb1 {[%emt 0:00:02]} Nxe4 {[%emt 0:01:03]} (16... c3 {with more complications.} 17. bxc3 Nxe4 18. Nxe4 dxe4 19. cxb4 Nb6) 17. Nxe4 {[%emt 0:00:12]} dxe4 {[%emt 0:00:05]} 18. Bxc4 {[%emt 0:01:57]} (18. Qxb4 $11 Rxf4 19. Qxb7) 18... Bd5 $15 {[%emt 0:01:12]} 19. Bxd5 {[%emt 0:00:01]} exd5 {[%emt 0:00:06]} 20. Bd6 {[%emt 0:00:28]} a5 {[%emt 0:04:51]} 21. Bxf8 {[%emt 0:01:48]} Qxf8 {[%emt 0:01:13]} (21... Nxf8 $11 {was preferrable.} 22. f3 Bf6) 22. Qe3 $14 {[%emt 0:03:46]} Nb6 {[%emt 0:01:19] [#]} (22... a4 $14) 23. Qh3 $1 $16 {[%emt 0:00:40]} Qf6 {[%emt 0:03:53] Prevents Qe6+.} 24. Qxh7+ {[%emt 0:00:43]} Kf7 {[%emt 0:00:33] ...Rh8 is the strong threat.} 25. Qh4 {[%emt 0:01:13]} Qc6 {[%emt 0:01:31]} 26. f3 {[%emt 0:03:24]} ({Better is} 26. Qg5 $18) 26... Rc8 $14 {[%emt 0:00:45][%csl Gc8][%cal Rc6c2] [#]} 27. Rd2 {[%emt 0:01:05]} (27. Qf2 $1 $16 {And now fxe4+ would win.} e3 28. Qe2) 27... Nc4 $1 $11 {[%emt 0:01:17]} 28. Qf4+ {[%emt 0:03:02]} ({White should play} 28. Rf2 $1 $14 Bxd4 29. fxe4+ (29. Qh7+ Kf8 $17) 29... Bxf2 30. Qxf2+ Qf6 31. Rh7+ Ke6 32. exd5+ Ke5 33. Qxf6+ Kxf6 34. Nd2) 28... Kg8 $1 {[%emt 0:00:39]} 29. fxe4 {[%emt 0:00:33]} Nxd2 {[%emt 0:01:01]} 30. Qxd2 {[%emt 0:00:03]} dxe4 {[%emt 0:00:22][%cal Oe4e3]} 31. c3 {[%emt 0:01:38]} Qd5 {[%emt 0:01:46][%csl LRa2,LRd4]} 32. Qe3 {[%emt 0:02:20]} Bxd4 {[%emt 0:02:26]} 33. Qh3 {[%emt 0:02:31]} Rc7 {[%emt 0:00:46]} 34. Rd1 {[%emt 0:00:02]} Qe5 {[%emt 0:00:29] White must now prevent ...e3.} 35. Kc2 {[%emt 0:01:48]} e3 {[%emt 0:00:49] Strongly threatening ...Qe4+.} 36. Qg4 {[%emt 0:00:15][%csl LRd4,LRg6] [#] Against Qe4+} e2 $1 {[%emt 0:00:50]} 37. Rxd4 {[%emt 0:01:57]} ({Avoid the trap} 37. Qxg6+ $2 Rg7 38. Qd3 exd1=B+ $19) 37... e1=Q {[%emt 0:01:02]} 38. Qxg6+ {[%emt 0:00:11] The position is equal.} Kf8 {[%emt 0:00:06]} 39. Rd8+ {[%emt 0:00:05]} Ke7 {[%emt 0:00:18]} 40. Re8+ {[%emt 0:01:28]} Kd7 {[%emt 0:00:12]} 41. Qf7+ {[%emt 0:31:30]} Kd6 {[%emt 0:31:13] ( -> ...Q1e2+)} 42. Rxe5 {[%emt 0:00:44] Really sharp!} Qxe5 {[%emt 0:00:14]} 43. Qf8+ {[%emt 0:00:00]} Kd7 {[%emt 0:00:00][%mdl 1024] Black has compensation.} 44. Qf7+ {[%emt 0:00:00] Weighted Error Value: White=0.28 (precise) /Black=0.18 (very precise)} 1/2-1/2

[Event "Germany Countries-chT Youth 2022"]
[Site "Wiesbaden"]
[Date "2022.10.01"]
[Round "1"]
[White "Boder, Jan"]
[Black "Jeschke, Jan"]
[Result "1/2-1/2"]
[ECO "E97"]
[WhiteElo "2341"]
[BlackElo "2146"]
[Annotator "TA"]
[PlyCount "138"]
[EventDate "2022.09.28"]
[EventType "team-tourn"]
[EventRounds "7"]
[EventCountry "GER"]
[SourceTitle "playchess.com"]
[Source "ChessBase"]
[SourceQuality "1"]
[TimeControl "40/5400+30:1800+30"]

{[%evp 23,138,14,18,-17,-30,-29,-7,-27,-33,-84,-80,-84,-83,-79,-83,-76,-80,-79,-79,-105,-95,-91,-98,-113,-119,-133,-117,-157,-147,-215,-212,-216,-210,-265,-217,-241,-189,-241,-212,-186,-113,-122,-101,-314,-333,-329,-309,-310,-294,-297,-264,-252,-279,-291,-255,-304,-255,-374,-361,-373,-385,-386,-383,-399,-395,-474,-464,-671,-671,-684,-682,-692,-692,-638,-636,-559,-169,-162,-128,-114,0,0,0,0,0,0,0,0,0,0,0,-8,-8,-8,-3,-11,-11,-18,-11,-18,-18,-19,-19,-58,-11,-11,-11,-18,-18,-18,-18,-18,0,-20,-20,-20,0]} 1. Nf3 {[%emt 0:00:07]} Nf6 {[%emt 0:00:30]} 2. c4 {[%emt 0:00:11]} g6 {[%emt 0:00:36]} 3. Nc3 {[%emt 0:00:12]} Bg7 {[%emt 0:00:16]} 4. e4 {[%emt 0:00:09]} d6 {[%emt 0:00:18]} 5. d4 {[%emt 0:00:07]} O-O {[%emt 0:00:34]} 6. Be2 {[%emt 0:00:22]} e5 {[%emt 0:01:18]} 7. O-O {[%emt 0:00:52]} Nc6 {[%emt 0:02:29]} 8. d5 {[%emt 0:00:21]} Ne7 {[%emt 0:00:07]} 9. b4 {[%emt 0:00:24]} a5 {[%emt 0:05:07]} 10. Ba3 {[%emt 0:00:19]} axb4 {[%emt 0:01:01]} 11. Bxb4 {[%emt 0:00:08]} b6 {[%emt 0:03:57]} 12. a4 {[%emt 0:00:27][%cal Ba2a4,Ba4a5][%mdl 32]} Ne8 {[%emt 0:01:47]} 13. a5 {[%emt 0:03:39] E97: King's Indian: Classical Main Line (6...e5 7 0-0 Nc6): 8 Be3 and 8 d5 Ne7, not 9 Ne1.} c5 {[%emt 0:00:46]} 14. dxc6 {[%emt 0:06:52]} Nxc6 {[%emt 0:00:10]} 15. Qd5 {[%emt 0:19:09]} Bb7 {[%emt 0:00:09]} 16. Qb5 {[%emt 0:06:57]} (16. axb6 $15 Rxa1 17. Rxa1) 16... bxa5 $17 {[%emt 0:19:49] [#]} 17. Qxb7 $146 {[%emt 0:23:38]} ({Predecessor:} 17. Ba3 Rb8 18. Rab1 Nc7 19. Qa4 Nd4 20. Nxd4 exd4 21. Nd5 Ne6 22. Rb6 Bxd5 23. Rxd6 Bxe4 24. Rxd8 Rfxd8 {0-1 (40) Steinbacher,M (2335)-Bjerring,K (2305) Copenhagen 1992}) 17... Nxb4 {[%emt 0:00:27]} 18. Rfd1 {[%emt 0:03:58] Against d5} Rb8 {[%emt 0:11:52]} 19. Qa7 {[%emt 0:00:14]} Nc6 $36 {[%emt 0:00:49][%mdl 2048] Black is really pushing.} 20. Qe3 {[%emt 0:00:50]} Nd4 {[%emt 0:00:37]} 21. Rab1 {[%emt 0:02:04]} Nc7 {[%emt 0:01:13][%cal Be8c7,Bc7e6,Be6c5][%mdl 32]} 22. Nb5 {[%emt 0:01:38]} Nce6 {[%emt 0:16:37]} 23. Nfxd4 {[%emt 0:03:47]} exd4 {[%emt 0:13:01]} 24. Qd2 {[%emt 0:02:55]} h5 {[%emt 0:07:57][%cal Bh7h5,Bh5h4][%mdl 32]} 25. Rf1 {[%emt 0:03:59]} a4 {[%emt 0:05:48]} 26. f4 {[%emt 0:01:09]} (26. Rfd1 $17) 26... Nc5 $19 {[%emt 0:00:20]} 27. Bd3 {[%emt 0:01:38]} Ra8 {[%emt 0:02:09]} 28. Qc2 {[%emt 0:03:34]} Re8 {[%emt 0:03:01]} 29. Ra1 {[%emt 0:03:04]} h4 {[%emt 0:00:32]} 30. Ra3 {[%emt 0:00:12]} (30. Qd1 {was called for.}) 30... Qb6 {[%emt 0:01:09]} 31. f5 {[%emt 0:01:14] [#]} Be5 {[%emt 0:00:55]} (31... Qc6 $1 $19 {Threatens to win with ...gxf5.} 32. Qd2 Nxd3 33. Qxd3 gxf5) 32. Qd2 $17 {[%emt 0:04:00]} Kg7 {[%emt 0:00:29][%cal Oh4h3] Against Qh6+} 33. Qg5 $2 {[%emt 0:00:40]} (33. Kh1 $17) 33... Bf6 $19 {[%emt 0:00:35]} 34. Qf4 {[%emt 0:00:03]} g5 {[%emt 0:00:28]} 35. Qxd6 {[%emt 0:01:36]} Qxd6 {[%emt 0:00:17]} 36. Nxd6 {[%emt 0:00:02]} Reb8 {[%emt 0:00:39]} 37. Nb5 {[%emt 0:01:27]} Rc8 {[%emt 0:00:08]} 38. Bc2 {[%emt 0:01:33]} Be5 {[%emt 0:00:56][%cal Od4d3]} 39. Rd1 {[%emt 0:01:18]} Rd8 {[%emt 0:00:11][%cal Od4d3]} 40. Kf2 {[%emt 0:02:36]} (40. Bd3 {might work better.}) 40... d3 {[%emt 0:00:45]} 41. Bb1 {[%emt 0:32:45]} Bb2 {[%emt 0:17:33]} ({Wrong is} 41... Nxe4+ $2 42. Ke3 Nf6 43. Bxd3 $19) 42. Ra2 {[%emt 0:00:00]} a3 {[%emt 0:00:11]} 43. Ke3 {[%emt 0:00:00]} Rd7 {[%emt 0:01:23] Prevents Nc7.} 44. g3 {[%emt 0:00:00]} Re8 {[%emt 0:07:30]} 45. gxh4 {[%emt 0:00:00]} (45. f6+ $142 Bxf6 46. Bxd3) 45... Rxe4+ {[%emt 0:01:14]} 46. Kf3 {[%emt 0:00:00]} Rxh4 {[%emt 0:02:15]} 47. Nxa3 {[%emt 0:00:00]} Rxh2 {[%emt 0:02:01] Hoping for ...Rd4.} 48. Nb5 {[%emt 0:00:00] Against Rd4} Kf6 {[%emt 0:01:27]} 49. Nc3 {[%emt 0:00:00]} Kxf5 $2 {[%emt 0:00:28]} (49... Rd4 50. Nd5+ Kxf5) 50. Kg3 {[%emt 0:00:00] [#]} Rc2 $1 {[%emt 0:01:01]} 51. Bxc2 {[%emt 0:00:00]} dxc2 {[%emt 0:00:02]} ({Better is} 51... Bxc3 $17 52. Bb1 Ke5) 52. Rf1+ $11 {[%emt 0:00:00]} Kg6 {[%emt 0:00:09] aiming for ...Rd3+.} 53. Rxb2 {[%emt 0:00:00]} Rd3+ {[%emt 0:00:09]} 54. Kh2 $1 {[%emt 0:00:00]} Rxc3 {[%emt 0:01:23][%mdl 4096] Endgame KRR-KRN} 55. Rc1 {[%emt 0:00:00]} Rxc4 {[%emt 0:00:14] Strongly threatening ...Nd3.} 56. Rbxc2 {[%emt 0:00:00]} Rh4+ {[%emt 0:00:32]} 57. Kg3 {[%emt 0:00:00]} Ne4+ {[%emt 0:00:24]} 58. Kg2 {[%emt 0:00:00]} f5 {[%emt 0:01:09]} 59. Rc6+ {[%emt 0:00:00]} Kh5 {[%emt 0:00:26]} 60. R1c4 {[%emt 0:00:00]} Kg4 {[%emt 0:00:26]} 61. Ra6 {[%emt 0:00:00]} Rh3 {[%emt 0:00:36]} 62. Raa4 $1 {[%emt 0:00:39]} Re3 {[%emt 0:00:13]} 63. Rcb4 {[%emt 0:01:21]} Kf4 {[%emt 0:00:09]} (63... Kh4 $15) 64. Rb2 {[%emt 0:00:25] The position is equal.} Rg3+ {[%emt 0:01:08]} 65. Kh2 {[%emt 0:00:06]} Rf3 {[%emt 0:00:29]} 66. Kg2 {[%emt 0:02:43]} Kg4 {[%emt 0:00:36]} 67. Re2 {[%emt 0:00:15]} Rf4 {[%emt 0:00:26]} 68. Re3 {[%emt 0:00:29]} Rf2+ {[%emt 0:00:33]} 69. Kg1 {[%emt 0:00:04] White wants to mate with Rexe4+.} Rf4 {[%emt 0:00:31] White happily takes the draw.  Weighted Error Value: White=0.32/Black=0.20 (precise)} 1/2-1/2